Cogmind - Beta 12 --- EXPLORER MODE // 2023.03.26 @ 01:56:23 Player: Spark774 Result: Self-destructed Performance ------------- Evolutions (1) 500 Regions Visited (2) 400 Robots Destroyed (19) 95 Value Destroyed (488) 488 Prototype IDs (0) 0 Alien Tech Used (0) 0 Bonus (0) 0 TOTAL SCORE: 1483 Bonus ------- None Cogmind --------- Core Integrity 355/400 Matter 220/300 Energy 38/100 System Corruption 0% Temperature Cool (6) Movement Treading (160) Location -9/Materials Parts ------- > --- POWER (1) -------- (None) > --- PROPULSION (3) --- Light Treads Light Treads Light Treads > --- UTILITY (4) ------ Heat Sink Medium Storage Unit Targeting Computer Hardened Light Armor Plating > --- WEAPON (2) ------- Medium Laser Shock Bomb Launcher > --- INVENTORY (10) --- Ion Engine Aluminum Leg Aluminum Leg Aluminum Leg Heat Sink Heat Sink Heat Sink Heat Sink Structural Scanner Medium Laser Peak State ------------ > --- POWER ------------ Light Nuclear Core > --- PROPULSION ------- Light Treads Light Treads Light Treads > --- UTILITY ---------- Heat Sink Medium Storage Unit Targeting Computer Hardened Light Armor Plating > --- WEAPON ----------- Medium Laser Shock Bomb Launcher > --- INVENTORY -------- Ion Engine Aluminum Leg Aluminum Leg Aluminum Leg Heat Sink Heat Sink Heat Sink Heat Sink Structural Scanner Medium Laser [Rating: 16] Favorites ----------- Power Light Nuclear Core Engine Ion Engine Power Core Light Nuclear Core Propulsion Light Treads Treads Light Treads Utility Medium Storage Unit Device Heat Sink Storage Medium Storage Unit Processor Targeting Computer Protection Hardened Light Armor Plating Weapon Medium Laser Energy Gun Medium Laser Ballistic Gun Assault Rifle Launcher Shock Bomb Launcher Build | -11 -10 -9 ------- Run | Jun Mat Mat Slots Evolved 3 | . 1 2 Power . | . . . Propulsion 1 | . . 1 Utility 2 | . 1 1 Weapon . | . . . Parts Attached 21 | 7 10 4 Power 3 | 1 2 . Engine 1 | 1 . . Core 2 | . 2 . Reactor . | . . . Propulsion 8 | 2 4 2 Treads 8 | 2 4 2 Leg . | . . . Wheel . | . . . Hover . | . . . Flight . | . . . Utility 4 | 2 1 1 Device 1 | . 1 . Storage 1 | 1 . . Processor 1 | 1 . . Hackware . | . . . Protection 1 | . . 1 Artifact . | . . . Weapon 6 | 2 3 1 Energy Gun 3 | 1 2 . Energy Cannon . | . . . Ballistic Gun 2 | 1 1 . Ballistic Cannon . | . . . Launcher 1 | . . 1 Special Weapon . | . . . Impact Weapon . | . . . Slashing Weapon . | . . . Piercing Weapon . | . . . Special Melee Weapon . | . . . Unidentified Prototypes . | . . . Parts Lost 1 | . . 1 Power 1 | . . 1 Propulsion . | . . . Utility . | . . . Weapon . | . . . Highest Loss Streak 1 | . . 1 To Critical Strikes . | . . . Average Slot Usage (%) 96 | . 97 95 Engine 4 | . 9 . Core 6 | . 2 9 Treads 25 | . 23 27 Device 10 | . 11 10 Storage 10 | . 12 10 Processor 10 | . 12 10 Protection 4 | . . 7 Energy Gun 10 | . 11 10 Ballistic Gun 10 | . 11 8 Naked Turns . | . . . Heaviest Build 29 | 19 20 29 Greatest Support 60 | 40 40 60 Greatest Overweight (x) 4 | 1 4 . Average Overweight (x) . | . . . Largest Inventory Capacity 10 | 10 10 10 Average Capacity 9 | 8 10 10 Most Carried 10 | 8 10 10 Average Carried 9 | 3 9 10 Final Capacity 10 | 10 10 10 Final Carried 10 | 7 10 10 Class Distribution -------------------- 100% | Hacker-Mutant Dominant Class ---------------- Hacker-Mutant | -10/Materials Hacker-Mutant | -9/Materials Resources | -11 -10 -9 ----------- Run | Jun Mat Mat Matter Collected 482 | 233 126 123 Remotely . | . . . Salvage Created 649 | . 212 437 Parts 33 | . 7 26 Haulers Intercepted . | . . . Recyclers Shooed 1 | . 1 . Parts Field Recycled . | . . . Retrieved Matter . | . . . Parts Self-Destructed . | . . . Prevented . | . . . Kills | -11 -10 -9 ------- Run | Jun Mat Mat Combat Hostiles Destroyed 14 | . 6 8 Guns 10 | . 6 4 AOE 4 | . . 4 Classes Destroyed 5 | . 2 3 Builder 4 | . . 4 Watcher 1 | . . 1 Swarmer 3 | . 2 1 Grunt 9 | . 4 5 Sentry 2 | . . 2 Best Kill Streak 6 | . 3 6 Combat Bots Only 5 | . 3 5 Max Kills in Single Turn 2 | . 1 2 Gunslinging 1 | . . 1 Exploded 2 | . . 2 Melee . | . . . Uniques/NPCs Destroyed . | . . . Combat | -11 -10 -9 -------- Run | Jun Mat Mat Damage Taken 670 | . 194 476 Core 78 | . 33 45 Absorbed by Shields . | . . . Core Remaining (%) 93 | 100 86 . Volleys Fired 59 | . 23 36 Largest 2 | . 2 2 Hottest 86 | . 70 86 Shots Fired 108 | . 46 62 Gun 103 | . 46 57 Cannon . | . . . Launcher 5 | . . 5 Special . | . . . Kinetic 44 | . 23 21 Thermal 59 | . 23 36 Explosive . | . . . Electromagnetic 5 | . . 5 Robot Hit Streak 32 | . 11 32 Robot Miss Streak 1 | . 1 1 Penetration Max . | . . . Secondary Targets 1 | . . 1 Max Gunslinging Chain 1 | . . 1 Shots Hit Robots 95 | . 39 56 Core Hits 30 | . 12 18 Critical Kills . | . . . Critical Parts Destroyed . | . . . Critical Strikes 7 | . 1 6 Burn 7 | . 1 6 Melee Attacks . | . . . Impact . | . . . Slashing . | . . . Piercing . | . . . Sneak Attacks . | . . . Combat Hostiles . | . . . Follow-up Attacks . | . . . Damage Inflicted 1449 | . 489 960 Guns 1141 | . 489 652 Cannons . | . . . Explosions 308 | . . 308 Melee . | . . . Ramming . | . . . Kinetic 455 | . 229 226 Thermal 750 | . 260 490 Explosive . | . . . Electromagnetic 244 | . . 244 Impact . | . . . Slashing . | . . . Piercing . | . . . Highest Corruption . | . . . Average Corruption . | . . . Corruption Purged . | . . . Corruption Blocked . | . . . Overload Shots . | . . . Overflow Damage . | . . . Projectiles . | . . . Explosions . | . . . Melee . | . . . Knockbacks . | . . . Impact . | . . . Kinetic . | . . . Secondary . | . . . Self-Inflicted Damage 53 | . . 53 Shots 6 | . . 6 Rammed . | . . . Targets Rammed . | . . . Kicked . | . . . Crushed . | . . . Highest Temperature 82 | . 20 82 Average Temperature 32 | . 8 37 Received Heat Transfer 423 | . 198 225 Siege Activations . | . . . Robots Corrupted . | . . . Combat Hostiles . | . . . Parts Fried 1 | . . 1 Impact Corruptions . | . . . Robots Melted . | . . . Combat Hostiles . | . . . Parts Melted 7 | . 3 4 Heat Transferred 2653 | . 851 1802 Parts Sabotaged . | . . . Parts Stolen . | . . . Parts Stripped . | . . . Power Chain Reactions 4 | . . 4 Missiles Intercepted . | . . . Alert | -11 -10 -9 ------- Run | Jun Mat Mat Peak Influence 211 | . 211 154 Initial . | . . . Average 66 | . 90 57 Maximum Alert Level 1 | . 1 . Low Security (%) 91 | 100 78 100 Level 1 9 | . 21 . Level 2 . | . . . Level 3 . | . . . Level 4 . | . . . Level 5 . | . . . High Security . | . . . Max Security . | . . . Squads Dispatched 1 | . . 1 Investigation . | . . . Extermination . | . . . Reinforcement 1 | . . 1 Assault . | . . . Garrison . | . . . Intercept . | . . . Searches Triggered . | . . . Construction Impeded . | . . . Haulers Reinforced . | . . . Active Scanning Responses . | . . . Cargo Convoy Interrupts . | . . . Stealth | -11 -10 -9 --------- Run | Jun Mat Mat Distress Signals 4 | . 1 3 Communications Jammed . | . . . Distress Signals . | . . . Times Spotted 27 | . 12 15 Peak Tracking Total 8 | . 6 8 Tactical Retreats 3 | . 1 2 Traps | -11 -10 -9 ------- Run | Jun Mat Mat Traps Triggered 6 | . 5 1 Indirectly . | . . . Trap Hack Attempts . | . . . Triggered . | . . . Disarmed . | . . . Reprogrammed . | . . . Reused . | . . . Traps Extracted . | . . . Installed . | . . . Triggered . | . . . Machines | -11 -10 -9 ---------- Run | Jun Mat Mat Machines Disabled . | . . . Max in Single Turn . | . . . Machines Repaired . | . . . Machines Sabotaged . | . . . Overloaded Fab Kills . | . . . Hacking | -11 -10 -9 --------- Run | Jun Mat Mat Machines Accessed . | . . . Terminals . | . . . Fabricators . | . . . Repair Stations . | . . . Recycling Units . | . . . Scanalyzers . | . . . Garrison Access . | . . . Total Hacks . | . . . Successful . | . . . Failed . | . . . Catastrophic . | . . . Database Lockouts . | . . . Manual . | . . . Terminals . | . . . Fabricators . | . . . Repair Stations . | . . . Recycling Units . | . . . Scanalyzers . | . . . Garrison Access . | . . . Terminal Hacks . | . . . Fabricator Hacks . | . . . Repair Station Hacks . | . . . Recycling Unit Hacks . | . . . Scanalyzer . | . . . Garrison Access Hacks . | . . . Unauthorized Hacks . | . . . Terminals . | . . . Fabricators . | . . . Repair Stations . | . . . Recycling Units . | . . . Scanalyzers . | . . . Garrison Access . | . . . Data Cores Recovered . | . . . Used . | . . . Hacking Detections . | . . . Full Trace Events . | . . . Feedback Events . | . . . Feedback Blocked . | . . . Robot Schematics Acquired . | . . . Robots Built . | . . . Authchips . | . . . Time . | . . . Total Robot Build Rating . | . . . Part Schematics Acquired . | . . . Parts Built . | . . . Authchips . | . . . Time . | . . . Total Part Build Rating . | . . . Parts Repaired . | . . . Time . | . . . Parts Recycled . | . . . Recycled Matter . | . . . Retrieved Matter . | . . . Retrieved Components . | . . . Parts Scanalyzed . | . . . Part Schematics Acquired . | . . . Parts Damaged . | . . . Bothacking | -11 -10 -9 ------------ Run | Jun Mat Mat Used RIF Installer . | . . . Robots Hacked . | . . . Non-combat . | . . . Combat . | . . . Robot Hacks Applied . | . . . Relay Couplers Released . | . . . Fabnet Peak Effective % . | . . . Robots Rewired . | . . . Allies Hacked . | . . . Hacks Repelled . | . . . Allies | -11 -10 -9 -------- Run | Jun Mat Mat Total Allies . | . . . Largest Group . | . . . Highest-Rated Group . | . . . Highest-Rated Ally . | . . . Total Orders . | . . . Ally Attacks . | . . . Total Damage . | . . . Kills . | . . . Allies Corrupted . | . . . Allies Melted . | . . . Intel | -11 -10 -9 ------- Run | Jun Mat Mat Robot Analysis Total . | . . . Derelict Logs Recovered . | . . . Drone Launches . | . . . Drone Recoveries . | . . . Exploration | -11 -10 -9 ------------- Run | Jun Mat Mat Turns Passed 1000 | 91 421 488 Spaces Moved 441 | 47 195 199 Core 7 | 6 1 . Treads 434 | 41 194 199 Legs . | . . . Wheels . | . . . Hover . | . . . Flight . | . . . Fastest Speed 50 | 50 160 160 Average Speed 159 | 151 160 160 Slowest Speed 250 | 160 250 160 Overloaded Moves . | . . . Propulsion Burnouts . | . . . Robots Hopped . | . . . Cave-ins Triggered . | . . . Exploration Rate (%) 16 | 4 33 13 Regions Visited 2 Branch Regions . Pre-discovered Areas . | . . . Known Exits Taken 2 | 1 1 . Unknown Exits Taken . | . . . Scrap Searched . | . . . Spaces Dug . | . . . Terrain Destroyed 9 | . . 9 Melee . | . . . Projectile . | . . . AOE 9 | . . 9 Terrain Rammed . | . . . Walls Destroyed . | . . . Machines Disabled . | . . . Actions | -11 -10 -9 --------- Run | Jun Mat Mat Total 627 | 67 254 306 Wait 82 | . 17 65 Move 439 | 46 194 199 Hop . | . . . Pick Up 20 | 14 6 . Fast Attach 13 | . 10 3 Attach 7 | 7 . . Detach . | . . . Swap 1 | . . 1 Drop 6 | . 4 2 Fire 59 | . 23 36 Melee . | . . . Ram . | . . . Kick . | . . . Crush . | . . . Escape Stasis . | . . . Rewire . | . . . Trap . | . . . Miscellaneous . | . . . Route ------- -11/Junkyard -10/Materials (discovered 3 exits: *Mat x2 / *Min) -9/Materials History --------- Turn | Location | Event 17 | -11/Junkyard | Identified exit to Materials 17 | -11/Junkyard | Discovered exit to Materials (range 16) 92 | -11/Junkyard | Entered Materials 92 | -10/Materials | Evolved 1 slot: Utility x1 295 | -10/Materials | Identified exit to Mines 295 | -10/Materials | Discovered exit to Mines (range 12) 304 | -10/Materials | Build established: Hacker-Mutant 364 | -10/Materials | Identified exit to Materials 364 | -10/Materials | Discovered exit to Materials (range 14) 410 | -10/Materials | Discovered exit to Materials (range 16) 513 | -10/Materials | Entered another Materials area 513 | -9/Materials | Evolved 2 slots: Propulsion x1, Utility x1 1001 | -9/Materials | Self-destructed Last Messages --------------- 00973_ Heat Sink fried. 00973_ G-34 Mercenary destroyed. 00973_ Chain reaction triggered in Corrupted Ion Engine. 00973_ Chain reaction triggered in Lgt. Deuterium Engine. 00981_ U-05 Engineer lays Concrete. 00986_ Y-45 Defender suffers critical hit (Burn). 00987_ Y-45 Defender heat short circuits Heat Sink. 00987_ U-05 Engineer lays Concrete. 00988_ Y-45 Defender suffers critical hit (Burn). 00988_ U-05 Engineer lays Concrete. 00990_ Y-45 Defender heat damages Hvy. Assault Rifle. 00990_ Lgt. Nuclear Core destroyed. 00990_ U-05 Engineer destroyed. 00991_ U-05 Engineer lays Concrete. 00992_ Y-45 Defender heat damages core (-5). 00992_ Lgt. Treads melted. 00992_ Y-45 Defender destroyed. 00992_ U-05 Engineer lays Concrete. 00998_ U-05 Engineer destroyed. 00998_ Chain reaction triggered in Corrupted Lgt. Ion Engine. Map ----- +----------------------------------------------------+ | | | | | | | | | | | | | | | | | | | ?????????????????????????????????????????????????? | | ?????????????????????????????????????????????????? | | #??????????????????????????????????????????????? | | #??????????????????????????????????????????????? | | #???#########??????????????????????????????????? | | #???# #??????????????????????????????????? | | #???# #??????????????????????????????????? | | #???# #??????????????????????????????????? | | #???##### #??????????????????????????????????? | | #???????# #??????????????????????????????????? | | #???????# #??????????????????????????????????? | | ########### #??????????????????????????????????? | | + "" # #??????########????????????????????? | | #### ""S # #??????#; ; ;#????????????????????? | | #??# "" # #??????#]] *]]#????????????????????? | | #??# # #??????# ] ]]#????????????????????? | | #??# # #??????# @ #????????????????????? | | #??# # #?????## = #????????????????????? | | #######+### ####### Y;#######???????????????? | | %%[ +????????????? | | !!= = %=% #????????????? | | !!* =% %%r ????????????? | | +#### ### #+######## ##### ### ????????????? | | # # ! ## u ##?????#????????????????? | | # # "" ="" """ ## #???????????????????????? | | # # " " """ ##!%=#???????????????????????? | | + # """ """ """ ## /???????????????????????? | | ### """ """ """ ## # ??????????????????????? | | #?# ## % ###?????????????????????? | | #?################ w #???????????????????????? | | #???????????????? ???????????????????????? | | =#????????????????? ???????????????????????? | | #####????????????????? #??????????????????????? | | ?????????????????????? ???????????????????????? | | ??????????????????????? ?????????????????????????? | | ?????????????????????????????????????????????????? | | ?????????????????????????????????????????????????? | | ?????????????????????????????????????????????????? | | ?????????????????????????????????????????????????? | | ?????????????????????????????????????????????????? | | ?????????????????????????????????????????????????? | +----------------------------------------------------+ Best States ------------- Heat Dissipation 38 Energy Generation 14 Energy Capacity 250 Matter Stores 300 Matter Capacity 300 Sight Range 16 Terrain Scan Density 10 Armor Coverage 150 Resistance: KI 35 Resistance: TH 35 Resistance: EX 35 Resistance: EM 35 Resistance: I 35 Resistance: S 35 Resistance: P 35 Evasion (%) 40 Targeting Accuracy 5 Recoil Reduction 3 Offensive Hacking 20 Item Schematics ----------------- None Robot Schematics ------------------ None Fabricated ------------ Nothing Alien Tech Used ----------------- None Achievements -------------- None Challenges ------------ None Game ------ Seed GlidesysFactoryChronowheel Manual? 0 Play Time 00:10:34 Cumulative 16.9 hours Start 2023.03.08 @ 03:57:07 End 2023.03.26 @ 01:56:23 Sessions 4 Manual Loads 0 Difficulty Explorer Special Mode None Game No. 29 Rogue 6 Adventurer 0 Explorer 23 Win Type - Total 0 Types 0/0/0/0/0/0/0/0/0 Lore% 7 Gallery% 32 Achievement% 22 Wizard Run 0 Options --------- ASCII 0 Keyboard 0 Movement Mouse Keybinds 0 Fullscreen 0 Font 28/X11 Map View 76x50 Tactical HUD 1 Map Filters NONE Filters SATURATION(60) Steam 1 RUN: 387d7aa5-3982-4cce-af05-e4761cd70c96